[Event "Titled Tuesday Blitz November 30 2021"]
[White "Abdrlauf, Elham"]
[Black "Matinian, Nikita"]
[WhiteFideId "1533533"]
[BlackFideId "24129100"]
[WhiteElo "2362"]
[BlackElo "2422"]
[Result "1-0"]
[Round "04"]
[TimeControl "180+1"]
[Date "2021.11.30"]
[WhiteClock "0:00:04"]
[BlackClock "0:00:03"]

1. e4 {[%clk 0:02:59]}  e5 {[%clk 0:02:59]} 2. Nf3 {[%clk 0:02:55]}  Nc6 {[%clk 0:02:59]} 3. Nc3 {[%clk 0:02:55]}  Nf6 {[%clk 0:02:59]} 4. Be2 {[%clk 0:02:55]}  Bb4 {[%clk 0:02:48]} 5. Nd5 {[%clk 0:02:54]}  Bc5 {[%clk 0:02:42]} 6. c3 {[%clk 0:02:43]}  Nxd5 {[%clk 0:02:40]} 7. exd5 {[%clk 0:02:44]}  Ne7 {[%clk 0:02:41]} 8. Nxe5 {[%clk 0:02:34]}  Nxd5 {[%clk 0:02:41]} 9. d4 {[%clk 0:02:34]}  Be7 {[%clk 0:02:40]} 10. Bc4 {[%clk 0:02:27]}  c6 {[%clk 0:02:34]} 11. Bxd5 {[%clk 0:01:53]}  cxd5 {[%clk 0:02:35]} 12. Qf3 {[%clk 0:01:53]}  O-O {[%clk 0:02:34]} 13. Qxd5 {[%clk 0:01:54]}  d6 {[%clk 0:02:34]} 14. Nf3 {[%clk 0:01:54]}  Be6 {[%clk 0:02:30]} 15. Qh5 {[%clk 0:01:46]}  Bc4 {[%clk 0:02:19]} 16. b3 {[%clk 0:01:33]}  Bd3 {[%clk 0:02:18]} 17. Bg5 {[%clk 0:01:28]}  Rc8 {[%clk 0:02:13]} 18. Kd2 {[%clk 0:01:17]}  Bg6 {[%clk 0:02:10]} 19. Qh4 {[%clk 0:01:17]}  Qa5 {[%clk 0:02:10]} 20. Rhc1 {[%clk 0:01:13]}  Bxg5+ {[%clk 0:01:55]} 21. Qxg5 {[%clk 0:01:13]}  Qa3 {[%clk 0:01:55]} 22. Ke2 {[%clk 0:01:01]}  Qb2+ {[%clk 0:01:30]} 23. Qd2 {[%clk 0:00:58]}  Rfe8+ {[%clk 0:01:30]} 24. Kf1 {[%clk 0:00:58]}  Qxd2 {[%clk 0:01:25]} 25. Nxd2 {[%clk 0:00:59]}  Bd3+ {[%clk 0:01:26]} 26. Kg1 {[%clk 0:00:59]}  Re2 {[%clk 0:01:27]} 27. Nf1 {[%clk 0:00:53]}  g6 {[%clk 0:01:19]} 28. Ne3 {[%clk 0:00:52]}  Kg7 {[%clk 0:01:15]} 29. c4 {[%clk 0:00:51]}  a5 {[%clk 0:01:08]} 30. Nd5 {[%clk 0:00:40]}  Rb2 {[%clk 0:00:54]} 31. Nc3 {[%clk 0:00:27]}  Re8 {[%clk 0:00:49]} 32. Rd1 {[%clk 0:00:28]}  Bf5 {[%clk 0:00:45]} 33. h3 {[%clk 0:00:25]}  h5 {[%clk 0:00:45]} 34. Re1 {[%clk 0:00:23]}  Rxe1+ {[%clk 0:00:35]} 35. Rxe1 {[%clk 0:00:24]}  Rc2 {[%clk 0:00:35]} 36. Re3 {[%clk 0:00:24]}  h4 {[%clk 0:00:34]} 37. Nb5 {[%clk 0:00:19]}  d5 {[%clk 0:00:28]} 38. cxd5 {[%clk 0:00:12]}  Rxa2 {[%clk 0:00:28]} 39. Nd6 {[%clk 0:00:12]}  Rd2 {[%clk 0:00:24]} 40. Nxb7 {[%clk 0:00:07]}  Rxd4 {[%clk 0:00:23]} 41. Nxa5 {[%clk 0:00:07]}  Rxd5 {[%clk 0:00:22]} 42. Nc4 {[%clk 0:00:07]}  Rd4 {[%clk 0:00:20]} 43. Re7 {[%clk 0:00:03]}  Be6 {[%clk 0:00:19]} 44. Rc7 {[%clk 0:00:03]}  Rd3 {[%clk 0:00:12]} 45. Ne5 {[%clk 0:00:02]}  Rxb3 {[%clk 0:00:11]} 46. Nf3 {[%clk 0:00:03]}  Bxh3 {[%clk 0:00:07]} 47. Nxh4 {[%clk 0:00:02]}  Be6 {[%clk 0:00:06]} 48. Nf3 {[%clk 0:00:03]}  Kf6 {[%clk 0:00:06]} 49. Nd4 {[%clk 0:00:03]}  Rb1+ {[%clk 0:00:06]} 50. Kh2 {[%clk 0:00:04]}  Rb2 {[%clk 0:00:05]} 51. Kg3 {[%clk 0:00:03]}  Rd2 {[%clk 0:00:04]} 52. Nf3 {[%clk 0:00:04]}  Ra2 {[%clk 0:00:04]} 53. Rc3 {[%clk 0:00:04]}  Ra5 {[%clk 0:00:03]} 54. Nd4 {[%clk 0:00:04]}  Bd5 {[%clk 0:00:04]} 55. f3 {[%clk 0:00:03]}  g5 {[%clk 0:00:04]} 56. Nc2 {[%clk 0:00:03]}  Be6 {[%clk 0:00:04]} 57. Nd4 {[%clk 0:00:03]}  Rd5 {[%clk 0:00:03]} 58. Ne2 {[%clk 0:00:03]}  Rd2 {[%clk 0:00:03]} 59. Re3 {[%clk 0:00:02]}  Rb2 {[%clk 0:00:03]} 60. Nc3 {[%clk 0:00:02]}  Rc2 {[%clk 0:00:03]} 61. Ne4+ {[%clk 0:00:03]}  Kg6 {[%clk 0:00:04]} 62. Nf2 {[%clk 0:00:03]}  Ra2 {[%clk 0:00:04]} 63. Nd3 {[%clk 0:00:03]}  Ra3 {[%clk 0:00:03]} 64. Ne5+ {[%clk 0:00:04]} 1-0


[Site "https://www.chess.com"]

[Event "Titled Tuesday Blitz November 30 2021"]
[White "Bacrot, Etienne"]
[Black "Atakishiyev, Elmar"]
[WhiteFideId "605506"]
[BlackFideId "13410547"]
[WhiteElo "2673"]
[BlackElo "2088"]
[Result "0-1"]
[Round "04"]
[TimeControl "180+1"]
[Date "2021.11.30"]
[WhiteClock "0:00:04"]
[BlackClock "0:00:05"]

1. e4 {[%clk 0:03:00]}  e6 {[%clk 0:02:58]} 2. d4 {[%clk 0:02:59]}  d5 {[%clk 0:02:58]} 3. exd5 {[%clk 0:02:59]}  Qxd5 {[%clk 0:02:57]} 4. Nf3 {[%clk 0:02:57]}  Nf6 {[%clk 0:02:57]} 5. Bd3 {[%clk 0:02:56]}  c5 {[%clk 0:02:56]} 6. Nc3 {[%clk 0:02:55]}  Qd8 {[%clk 0:02:56]} 7. Bf4 {[%clk 0:02:53]}  Nc6 {[%clk 0:02:27]} 8. dxc5 {[%clk 0:02:34]}  Bxc5 {[%clk 0:02:24]} 9. O-O {[%clk 0:02:35]}  O-O {[%clk 0:02:24]} 10. Ne5 {[%clk 0:02:27]}  Qd4 {[%clk 0:02:05]} 11. Ne2 {[%clk 0:02:00]}  Qxb2 {[%clk 0:01:51]} 12. Nxc6 {[%clk 0:01:59]}  bxc6 {[%clk 0:01:49]} 13. Rb1 {[%clk 0:01:57]}  Qxa2 {[%clk 0:01:45]} 14. Be5 {[%clk 0:01:57]}  Ng4 {[%clk 0:01:34]} 15. Nc3 {[%clk 0:01:48]}  Qa5 {[%clk 0:00:42]} 16. Qxg4 {[%clk 0:01:37]}  Bxf2+ {[%clk 0:00:42]} 17. Rxf2 {[%clk 0:01:37]}  Qxe5 {[%clk 0:00:43]} 18. Qe4 {[%clk 0:01:31]}  Qxe4 {[%clk 0:00:41]} 19. Bxe4 {[%clk 0:01:28]}  Ba6 {[%clk 0:00:40]} 20. Ra1 {[%clk 0:01:20]}  Bc4 {[%clk 0:00:38]} 21. Bxc6 {[%clk 0:01:20]}  Rac8 {[%clk 0:00:38]} 22. Bf3 {[%clk 0:01:18]}  Rc7 {[%clk 0:00:36]} 23. Ne4 {[%clk 0:01:12]}  Bd5 {[%clk 0:00:34]} 24. Nd6 {[%clk 0:01:11]}  Bxf3 {[%clk 0:00:33]} 25. gxf3 {[%clk 0:01:11]}  h6 {[%clk 0:00:30]} 26. Nb5 {[%clk 0:01:06]}  Rc5 {[%clk 0:00:30]} 27. Nxa7 {[%clk 0:00:58]}  Ra8 {[%clk 0:00:30]} 28. Ra3 {[%clk 0:00:55]}  g5 {[%clk 0:00:27]} 29. Kg2 {[%clk 0:00:55]}  Kg7 {[%clk 0:00:25]} 30. Nb5 {[%clk 0:00:53]}  Rac8 {[%clk 0:00:24]} 31. Nd4 {[%clk 0:00:52]}  Rc4 {[%clk 0:00:24]} 32. Rd3 {[%clk 0:00:52]}  Kg6 {[%clk 0:00:24]} 33. Rdd2 {[%clk 0:00:50]}  R8c5 {[%clk 0:00:22]} 34. Nb3 {[%clk 0:00:49]}  Rf5 {[%clk 0:00:21]} 35. Rd4 {[%clk 0:00:42]}  Rc3 {[%clk 0:00:20]} 36. Rd3 {[%clk 0:00:40]}  Rc4 {[%clk 0:00:20]} 37. c3 {[%clk 0:00:38]}  h5 {[%clk 0:00:19]} 38. Nd2 {[%clk 0:00:38]}  Rc6 {[%clk 0:00:19]} 39. c4 {[%clk 0:00:36]}  f6 {[%clk 0:00:18]} 40. Rc3 {[%clk 0:00:36]}  Rfc5 {[%clk 0:00:17]} 41. Re2 {[%clk 0:00:36]}  e5 {[%clk 0:00:14]} 42. Ree3 {[%clk 0:00:34]}  Ra5 {[%clk 0:00:14]} 43. Kf2 {[%clk 0:00:33]}  Kf5 {[%clk 0:00:11]} 44. Ne4 {[%clk 0:00:31]}  Ra2+ {[%clk 0:00:08]} 45. Re2 {[%clk 0:00:30]}  Ra4 {[%clk 0:00:07]} 46. c5 {[%clk 0:00:29]}  g4 {[%clk 0:00:08]} 47. Ng3+ {[%clk 0:00:28]}  Kg5 {[%clk 0:00:07]} 48. Ne4+ {[%clk 0:00:27]}  Kf5 {[%clk 0:00:07]} 49. Nd6+ {[%clk 0:00:26]}  Ke6 {[%clk 0:00:07]} 50. Nb7 {[%clk 0:00:16]}  Kd5 {[%clk 0:00:07]} 51. Rd2+ {[%clk 0:00:15]}  Rd4 {[%clk 0:00:08]} 52. Rxd4+ {[%clk 0:00:15]}  exd4 {[%clk 0:00:07]} 53. Rc1 {[%clk 0:00:14]}  Rc7 {[%clk 0:00:07]} 54. Na5 {[%clk 0:00:14]}  Rxc5 {[%clk 0:00:05]} 55. Rxc5+ {[%clk 0:00:13]}  Kxc5 {[%clk 0:00:06]} 56. f4 {[%clk 0:00:12]}  f5 {[%clk 0:00:05]} 57. Ke2 {[%clk 0:00:11]}  Kd5 {[%clk 0:00:04]} 58. Kd3 {[%clk 0:00:11]}  h4 {[%clk 0:00:04]} 59. Nb3 {[%clk 0:00:10]}  g3 {[%clk 0:00:03]} 60. hxg3 {[%clk 0:00:10]}  h3 {[%clk 0:00:03]} 61. Nd2 {[%clk 0:00:04]}  h2 {[%clk 0:00:04]} 62. Ne4 {[%clk 0:00:04]}  h1=Q {[%clk 0:00:05]} 0-1


[Site "https://www.chess.com"]

[Event "Titled Tuesday Blitz November 30 2021"]
[White "Bazeev, German"]
[Black "Petrovskyi, Vadym"]
[WhiteFideId "24119350"]
[BlackFideId "14165210"]
[WhiteElo "2462"]
[BlackElo "2377"]
[Result "0-1"]
[Round "04"]
[TimeControl "180+1"]
[Date "2021.11.30"]
[WhiteClock "0:00:17"]
[BlackClock "0:00:39"]

1. d4 {[%clk 0:03:00]}  Nf6 {[%clk 0:03:00]} 2. Nf3 {[%clk 0:03:01]}  g6 {[%clk 0:03:00]} 3. c4 {[%clk 0:03:01]}  Bg7 {[%clk 0:03:00]} 4. Nc3 {[%clk 0:03:02]}  O-O {[%clk 0:03:00]} 5. Bg5 {[%clk 0:03:01]}  d6 {[%clk 0:03:01]} 6. e3 {[%clk 0:03:02]}  Nbd7 {[%clk 0:03:00]} 7. Be2 {[%clk 0:03:02]}  c6 {[%clk 0:02:59]} 8. O-O {[%clk 0:03:02]}  a5 {[%clk 0:03:00]} 9. Rc1 {[%clk 0:02:59]}  Qe8 {[%clk 0:02:57]} 10. Qc2 {[%clk 0:02:55]}  e5 {[%clk 0:02:57]} 11. Rfd1 {[%clk 0:02:55]}  h6 {[%clk 0:02:55]} 12. Bh4 {[%clk 0:02:55]}  g5 {[%clk 0:02:54]} 13. Bg3 {[%clk 0:02:55]}  Nh5 {[%clk 0:02:54]} 14. dxe5 {[%clk 0:02:54]}  Nxg3 {[%clk 0:02:54]} 15. hxg3 {[%clk 0:02:54]}  dxe5 {[%clk 0:02:53]} 16. Bd3 {[%clk 0:02:34]}  Nc5 {[%clk 0:02:48]} 17. Bf5 {[%clk 0:02:31]}  e4 {[%clk 0:02:31]} 18. Bxc8 {[%clk 0:01:44]}  Rxc8 {[%clk 0:02:24]} 19. Ne1 {[%clk 0:01:42]}  f5 {[%clk 0:02:24]} 20. Na4 {[%clk 0:01:41]}  Qe5 {[%clk 0:02:07]} 21. Nxc5 {[%clk 0:01:36]}  Qxc5 {[%clk 0:02:06]} 22. Rd7 {[%clk 0:01:36]}  Rf7 {[%clk 0:01:59]} 23. Rxf7 {[%clk 0:01:31]}  Kxf7 {[%clk 0:02:00]} 24. Rd1 {[%clk 0:01:31]}  Rc7 {[%clk 0:01:56]} 25. g4 {[%clk 0:01:28]}  Ke7 {[%clk 0:01:40]} 26. Qd2 {[%clk 0:01:19]}  Kf7 {[%clk 0:01:31]} 27. gxf5 {[%clk 0:01:00]}  Qxf5 {[%clk 0:01:30]} 28. b3 {[%clk 0:00:58]}  Re7 {[%clk 0:01:25]} 29. Nc2 {[%clk 0:00:58]}  Qg4 {[%clk 0:01:17]} 30. Nd4 {[%clk 0:00:38]}  Rd7 {[%clk 0:01:15]} 31. c5 {[%clk 0:00:38]}  h5 {[%clk 0:00:59]} 32. Rf1 {[%clk 0:00:29]}  h4 {[%clk 0:00:53]} 33. f3 {[%clk 0:00:29]}  exf3 {[%clk 0:00:52]} 34. Rxf3+ {[%clk 0:00:30]}  Kg8 {[%clk 0:00:52]} 35. Qd3 {[%clk 0:00:21]}  Bxd4 {[%clk 0:00:38]} 36. exd4 {[%clk 0:00:17]}  Qxd4+ {[%clk 0:00:38]} 37. Qxd4 {[%clk 0:00:17]}  Rxd4 {[%clk 0:00:39]} 38. Rf5 {[%clk 0:00:17]}  Rd5 {[%clk 0:00:39]} 0-1


[Site "https://www.chess.com"]

[Event "Titled Tuesday Blitz November 30 2021"]
[White "Deac, Bogdan-Daniel"]
[Black "Donchenko, Alexander"]
[WhiteFideId "1226380"]
[BlackFideId "24603295"]
[WhiteElo "2605"]
[BlackElo "2490"]
[Result "1/2-1/2"]
[Round "04"]
[TimeControl "180+1"]
[Date "2021.11.30"]
[WhiteClock "0:00:10"]
[BlackClock "0:00:06"]

1. e4 {[%clk 0:03:00]}  c6 {[%clk 0:02:58]} 2. Nf3 {[%clk 0:02:59]}  d5 {[%clk 0:02:59]} 3. d3 {[%clk 0:02:59]}  dxe4 {[%clk 0:02:59]} 4. dxe4 {[%clk 0:03:00]}  Qxd1+ {[%clk 0:02:59]} 5. Kxd1 {[%clk 0:03:01]}  Nf6 {[%clk 0:03:00]} 6. Nfd2 {[%clk 0:03:01]}  h5 {[%clk 0:02:54]} 7. h4 {[%clk 0:03:00]}  Ng4 {[%clk 0:02:52]} 8. Ke1 {[%clk 0:03:00]}  e5 {[%clk 0:02:49]} 9. Nc4 {[%clk 0:02:51]}  Nd7 {[%clk 0:02:35]} 10. f3 {[%clk 0:02:47]}  Ngf6 {[%clk 0:02:35]} 11. a4 {[%clk 0:02:46]}  Bc5 {[%clk 0:02:32]} 12. c3 {[%clk 0:02:43]}  O-O {[%clk 0:02:28]} 13. b4 {[%clk 0:02:35]}  Be7 {[%clk 0:02:28]} 14. Nbd2 {[%clk 0:02:31]}  Re8 {[%clk 0:02:27]} 15. Nb3 {[%clk 0:02:29]}  Nh7 {[%clk 0:02:18]} 16. Be3 {[%clk 0:02:22]}  Nhf8 {[%clk 0:02:17]} 17. Rd1 {[%clk 0:02:12]}  Ng6 {[%clk 0:02:15]} 18. Nd6 {[%clk 0:01:25]}  Rd8 {[%clk 0:01:44]} 19. Nf5 {[%clk 0:00:52]}  Bf6 {[%clk 0:01:36]} 20. Bg5 {[%clk 0:00:51]}  Rf8 {[%clk 0:01:28]} 21. a5 {[%clk 0:00:47]}  Nf4 {[%clk 0:01:19]} 22. g3 {[%clk 0:00:30]}  Ne6 {[%clk 0:01:17]} 23. Ne7+ {[%clk 0:00:30]}  Bxe7 {[%clk 0:01:16]} 24. Bxe7 {[%clk 0:00:31]}  Re8 {[%clk 0:01:17]} 25. Bd6 {[%clk 0:00:31]}  Nef8 {[%clk 0:00:59]} 26. Kf2 {[%clk 0:00:22]}  Nf6 {[%clk 0:00:59]} 27. Nc5 {[%clk 0:00:21]}  N8d7 {[%clk 0:00:57]} 28. Nd3 {[%clk 0:00:14]}  Re6 {[%clk 0:00:55]} 29. Nc5 {[%clk 0:00:12]}  Re8 {[%clk 0:00:53]} 30. Be2 {[%clk 0:00:10]}  Nxc5 {[%clk 0:00:53]} 31. Bxc5 {[%clk 0:00:11]}  Be6 {[%clk 0:00:52]} 32. c4 {[%clk 0:00:10]}  b6 {[%clk 0:00:33]} 33. axb6 {[%clk 0:00:09]}  axb6 {[%clk 0:00:34]} 34. Bxb6 {[%clk 0:00:09]}  Ra2 {[%clk 0:00:35]} 35. Rc1 {[%clk 0:00:09]}  Nd7 {[%clk 0:00:35]} 36. Be3 {[%clk 0:00:08]}  Rb8 {[%clk 0:00:35]} 37. Ra1 {[%clk 0:00:05]}  Rxa1 {[%clk 0:00:30]} 38. Rxa1 {[%clk 0:00:06]}  Rxb4 {[%clk 0:00:30]} 39. Rc1 {[%clk 0:00:06]}  Rb2 {[%clk 0:00:28]} 40. Ke1 {[%clk 0:00:06]}  Nb6 {[%clk 0:00:26]} 41. c5 {[%clk 0:00:04]}  Na4 {[%clk 0:00:25]} 42. f4 {[%clk 0:00:04]}  exf4 {[%clk 0:00:22]} 43. gxf4 {[%clk 0:00:05]}  Bg4 {[%clk 0:00:22]} 44. Bd3 {[%clk 0:00:05]}  Rh2 {[%clk 0:00:20]} 45. f5 {[%clk 0:00:05]}  Rxh4 {[%clk 0:00:15]} 46. Bf1 {[%clk 0:00:05]}  Rh2 {[%clk 0:00:13]} 47. Ra1 {[%clk 0:00:04]}  Nc3 {[%clk 0:00:11]} 48. Bf4 {[%clk 0:00:02]}  Rc2 {[%clk 0:00:10]} 49. Ra8+ {[%clk 0:00:02]}  Kh7 {[%clk 0:00:09]} 50. Bd3 {[%clk 0:00:03]}  Rg2 {[%clk 0:00:06]} 51. e5 {[%clk 0:00:03]}  Be2 {[%clk 0:00:04]} 52. Bc2 {[%clk 0:00:02]}  Bf3 {[%clk 0:00:05]} 53. Bd3 {[%clk 0:00:02]}  Be4 {[%clk 0:00:05]} 54. Bxe4 {[%clk 0:00:02]}  Nxe4 {[%clk 0:00:06]} 55. e6 {[%clk 0:00:03]}  fxe6 {[%clk 0:00:06]} 56. fxe6 {[%clk 0:00:04]}  Nf6 {[%clk 0:00:06]} 57. e7 {[%clk 0:00:04]}  Rg4 {[%clk 0:00:06]} 58. Bd6 {[%clk 0:00:04]}  Re4+ {[%clk 0:00:07]} 59. Kf2 {[%clk 0:00:04]}  h4 {[%clk 0:00:07]} 60. Kf3 {[%clk 0:00:04]}  Kg6 {[%clk 0:00:08]} 61. Rf8 {[%clk 0:00:05]}  Re6 {[%clk 0:00:08]} 62. Rh8 {[%clk 0:00:05]}  Kf7 {[%clk 0:00:07]} 63. Rxh4 {[%clk 0:00:05]}  Nd5 {[%clk 0:00:07]} 64. Rh8 {[%clk 0:00:05]}  Nxe7 {[%clk 0:00:08]} 65. Rd8 {[%clk 0:00:05]}  Nf5 {[%clk 0:00:08]} 66. Rd7+ {[%clk 0:00:05]}  Kf6 {[%clk 0:00:08]} 67. Bc7 {[%clk 0:00:05]}  g5 {[%clk 0:00:08]} 68. Bd8+ {[%clk 0:00:05]}  Kg6 {[%clk 0:00:08]} 69. Rc7 {[%clk 0:00:06]}  Kh5 {[%clk 0:00:05]} 70. Rh7+ {[%clk 0:00:06]}  Rh6 {[%clk 0:00:04]} 71. Rc7 {[%clk 0:00:06]}  g4+ {[%clk 0:00:04]} 72. Kf4 {[%clk 0:00:06]}  Nd4 {[%clk 0:00:04]} 73. Ke5 {[%clk 0:00:05]}  Nf3+ {[%clk 0:00:04]} 74. Kf4 {[%clk 0:00:05]}  Nd4 {[%clk 0:00:04]} 75. Rd7 {[%clk 0:00:05]}  Ne6+ {[%clk 0:00:04]} 76. Kg3 {[%clk 0:00:05]}  Nxd8 {[%clk 0:00:04]} 77. Rxd8 {[%clk 0:00:06]}  Rg6 {[%clk 0:00:02]} 78. Rd6 {[%clk 0:00:06]}  Kh6 {[%clk 0:00:02]} 79. Rxg6+ {[%clk 0:00:06]}  Kxg6 {[%clk 0:00:03]} 80. Kxg4 {[%clk 0:00:07]}  Kf6 {[%clk 0:00:04]} 81. Kf4 {[%clk 0:00:07]}  Ke6 {[%clk 0:00:04]} 82. Ke4 {[%clk 0:00:08]}  Kf6 {[%clk 0:00:05]} 83. Kf4 {[%clk 0:00:09]}  Ke6 {[%clk 0:00:05]} 84. Ke4 {[%clk 0:00:09]}  Kf6 {[%clk 0:00:06]} 85. Kf4 {[%clk 0:00:10]} 1/2-1/2


[Site "https://www.chess.com"]

[Event "Titled Tuesday Blitz November 30 2021"]
[White "Durarbayli, Vasif"]
[Black "Bashirli, Nail"]
[WhiteFideId "13402935"]
[BlackFideId "13406809"]
[WhiteElo "2522"]
[BlackElo "2382"]
[Result "1-0"]
[Round "04"]
[TimeControl "180+1"]
[Date "2021.11.30"]
[WhiteClock "0:00:14"]
[BlackClock "0:00:04"]

1. e4 {[%clk 0:03:00]}  c5 {[%clk 0:02:54]} 2. b3 {[%clk 0:03:00]}  g6 {[%clk 0:02:51]} 3. Bb2 {[%clk 0:03:00]}  Nf6 {[%clk 0:02:51]} 4. Qf3 {[%clk 0:03:00]}  d6 {[%clk 0:02:46]} 5. Bb5+ {[%clk 0:03:00]}  Bd7 {[%clk 0:02:37]} 6. Bxf6 {[%clk 0:02:55]}  exf6 {[%clk 0:02:37]} 7. Bxd7+ {[%clk 0:02:55]}  Nxd7 {[%clk 0:02:37]} 8. Nc3 {[%clk 0:02:55]}  Bg7 {[%clk 0:02:37]} 9. Qg3 {[%clk 0:02:49]}  O-O {[%clk 0:02:33]} 10. Qxd6 {[%clk 0:02:41]}  f5 {[%clk 0:02:34]} 11. exf5 {[%clk 0:02:39]}  Qg5 {[%clk 0:01:54]} 12. Nge2 {[%clk 0:02:17]}  Ne5 {[%clk 0:01:36]} 13. f4 {[%clk 0:02:00]}  Qxg2 {[%clk 0:01:29]} 14. O-O-O {[%clk 0:01:59]}  Rfd8 {[%clk 0:01:23]} 15. Qxc5 {[%clk 0:01:37]}  Rac8 {[%clk 0:01:17]} 16. Qg1 {[%clk 0:01:33]}  Qxg1 {[%clk 0:01:12]} 17. Rhxg1 {[%clk 0:01:28]}  Nf3 {[%clk 0:01:11]} 18. Rg3 {[%clk 0:01:24]}  Nh4 {[%clk 0:01:05]} 19. fxg6 {[%clk 0:01:23]}  hxg6 {[%clk 0:01:06]} 20. Re3 {[%clk 0:01:13]}  Bh6 {[%clk 0:01:03]} 21. Re7 {[%clk 0:01:08]}  Nf3 {[%clk 0:00:33]} 22. h3 {[%clk 0:01:04]}  Bf8 {[%clk 0:00:29]} 23. Rxb7 {[%clk 0:00:43]}  Ba3+ {[%clk 0:00:29]} 24. Kb1 {[%clk 0:00:42]}  Nxd2+ {[%clk 0:00:30]} 25. Ka1 {[%clk 0:00:37]}  a5 {[%clk 0:00:23]} 26. Rb5 {[%clk 0:00:34]}  Bb4 {[%clk 0:00:20]} 27. Kb2 {[%clk 0:00:31]}  Bxc3+ {[%clk 0:00:08]} 28. Nxc3 {[%clk 0:00:31]}  Rxc3 {[%clk 0:00:08]} 29. Rxd2 {[%clk 0:00:29]}  Rxb3+ {[%clk 0:00:09]} 30. axb3 {[%clk 0:00:19]}  Rxd2 {[%clk 0:00:09]} 31. Rxa5 {[%clk 0:00:20]}  Rd4 {[%clk 0:00:10]} 32. Ra4 {[%clk 0:00:19]}  Rd5 {[%clk 0:00:10]} 33. b4 {[%clk 0:00:16]}  Rd4 {[%clk 0:00:08]} 34. Kb3 {[%clk 0:00:14]}  Rxf4 {[%clk 0:00:08]} 35. b5 {[%clk 0:00:14]}  Rf3+ {[%clk 0:00:07]} 36. c3 {[%clk 0:00:15]}  Rf1 {[%clk 0:00:06]} 37. Rb4 {[%clk 0:00:13]}  Rb1+ {[%clk 0:00:04]} 38. Kc4 {[%clk 0:00:13]}  Re1 {[%clk 0:00:04]} 39. b6 {[%clk 0:00:14]}  Re8 {[%clk 0:00:04]} 40. b7 {[%clk 0:00:14]} 1-0


[Site "https://www.chess.com"]

[Event "Titled Tuesday Blitz November 30 2021"]
[White "Gasanov, Eldar"]
[Black "Demchenko, Anton"]
[WhiteFideId "14104466"]
[BlackFideId "4160258"]
[WhiteElo "2454"]
[BlackElo "2583"]
[Result "0-1"]
[Round "04"]
[TimeControl "180+1"]
[Date "2021.11.30"]
[WhiteClock "0:00:02"]
[BlackClock "0:00:06"]

1. d4 {[%clk 0:03:00]}  d5 {[%clk 0:02:59]} 2. Nf3 {[%clk 0:02:59]}  Nf6 {[%clk 0:02:59]} 3. c4 {[%clk 0:02:57]}  dxc4 {[%clk 0:03:00]} 4. e3 {[%clk 0:02:56]}  e6 {[%clk 0:03:01]} 5. Bxc4 {[%clk 0:02:56]}  Be7 {[%clk 0:03:01]} 6. O-O {[%clk 0:02:55]}  a6 {[%clk 0:03:02]} 7. b3 {[%clk 0:02:54]}  O-O {[%clk 0:03:01]} 8. Bb2 {[%clk 0:02:54]}  Nbd7 {[%clk 0:03:00]} 9. Nbd2 {[%clk 0:02:50]}  b6 {[%clk 0:03:00]} 10. Qe2 {[%clk 0:02:47]}  Bb7 {[%clk 0:03:00]} 11. Rfd1 {[%clk 0:02:44]}  c5 {[%clk 0:03:00]} 12. Rac1 {[%clk 0:02:41]}  Qb8 {[%clk 0:02:46]} 13. a3 {[%clk 0:02:36]}  Rd8 {[%clk 0:02:45]} 14. dxc5 {[%clk 0:02:32]}  b5 {[%clk 0:02:34]} 15. Bxe6 {[%clk 0:02:18]}  Bxf3 {[%clk 0:01:25]} 16. Bxf7+ {[%clk 0:01:25]}  Kxf7 {[%clk 0:01:25]} 17. Nxf3 {[%clk 0:01:25]}  Nf8 {[%clk 0:00:56]} 18. Ne5+ {[%clk 0:01:21]}  Kg8 {[%clk 0:00:56]} 19. Rxd8 {[%clk 0:01:00]}  Qxd8 {[%clk 0:00:53]} 20. b4 {[%clk 0:00:47]}  Qd5 {[%clk 0:00:49]} 21. f3 {[%clk 0:00:43]}  Rd8 {[%clk 0:00:47]} 22. c6 {[%clk 0:00:35]}  Rc8 {[%clk 0:00:39]} 23. e4 {[%clk 0:00:33]}  Qb3 {[%clk 0:00:38]} 24. Qd2 {[%clk 0:00:21]}  Ne6 {[%clk 0:00:31]} 25. h3 {[%clk 0:00:15]}  Rd8 {[%clk 0:00:28]} 26. Qc2 {[%clk 0:00:12]}  Qxc2 {[%clk 0:00:26]} 27. Rxc2 {[%clk 0:00:13]}  Rc8 {[%clk 0:00:26]} 28. Kf2 {[%clk 0:00:10]}  Bd8 {[%clk 0:00:20]} 29. g3 {[%clk 0:00:08]}  Bb6+ {[%clk 0:00:21]} 30. Ke2 {[%clk 0:00:09]}  Bd4 {[%clk 0:00:21]} 31. f4 {[%clk 0:00:05]}  Nxe4 {[%clk 0:00:15]} 32. Kd3 {[%clk 0:00:02]}  Bxb2 {[%clk 0:00:15]} 33. Kxe4 {[%clk 0:00:03]}  Bxa3 {[%clk 0:00:13]} 34. Kd5 {[%clk 0:00:02]}  Nf8 {[%clk 0:00:08]} 35. c7 {[%clk 0:00:02]}  Bxb4 {[%clk 0:00:07]} 36. Kc6 {[%clk 0:00:02]}  Ba5 {[%clk 0:00:06]} 37. Kb7 {[%clk 0:00:02]}  Rxc7+ {[%clk 0:00:07]} 38. Rxc7 {[%clk 0:00:03]}  Bxc7 {[%clk 0:00:07]} 39. Kxc7 {[%clk 0:00:03]}  b4 {[%clk 0:00:08]} 40. Kb6 {[%clk 0:00:03]}  b3 {[%clk 0:00:08]} 41. Nc4 {[%clk 0:00:03]}  Ne6 {[%clk 0:00:05]} 42. Kxa6 {[%clk 0:00:03]}  Nc5+ {[%clk 0:00:06]} 43. Kb5 {[%clk 0:00:03]}  Ne4 {[%clk 0:00:06]} 44. Kb4 {[%clk 0:00:01]}  Nxg3 {[%clk 0:00:06]} 45. Kxb3 {[%clk 0:00:02]}  Ne2 {[%clk 0:00:07]} 46. f5 {[%clk 0:00:01]}  Ng1 {[%clk 0:00:06]} 47. Kc3 {[%clk 0:00:01]}  Nxh3 {[%clk 0:00:06]} 48. Kd3 {[%clk 0:00:01]}  Kf7 {[%clk 0:00:06]} 49. Ke4 {[%clk 0:00:02]}  Kf6 {[%clk 0:00:06]} 0-1


[Site "https://www.chess.com"]